bitfinex-derivatives/quotes_SOLF0:USTF0_20250731
["timestamp","ask_amount","ask_price","bid_price","bid_amount"]
[1753964117984,4.62990699,180.34,180.3,3.12]
[1753964117985,3.24,180.34,180.3,3.12]
[1753964118189,3.99621964,180.33,180.32,3.12]
[1753964119593,7.23621964,180.33,180.32,3.12]
[1753964119893,12.78241964,180.33,180.32,3.12]
[1753964120095,12.78241964,180.33,180.31,3.04935264]
[1753964120298,3.24,180.32,180.31,6.16935264]
[1753964121295,6.15592551,180.4,180.32,3.12]
[1753964121296,4.62990699,180.4,180.32,3.12]
[1753964121591,3.99145071,180.39,180.38,3.04935264]
[1753964121794,3.99145071,180.39,180.38,6.16935264]
[1753964122591,5.544,180.41,180.38,3.04935264]
[1753964122797,8.784,180.41,180.4,3.12]
[1753964122993,5.5444,180.39,180.38,3.04935264]
[1753964123295,5.5444,180.39,180.38,6.16935264]
[1753964123694,8.785,180.37,180.36,3.12]
[1753964123894,8.785,180.37,180.3,106.42103714]
[1753964123895,3.04935264,180.41,180.34,3.12]
[1753964124196,5.5453,180.36,180.34,3.12]
[1753964124398,8.7853,180.36,180.35,3.12]
[1753964125898,5.5453,180.36,180.35,3.12]
[1753964126101,8.7851,180.37,180.36,3.12]
[1753964126500,5.5451,180.37,180.36,3.12]
[1753964126797,5.5448,180.38,180.37,3.12]
[1753964127092,3.24,180.38,180.36,3.12]
[1753964127294,3.24,180.38,180.37,3.12]
[1753964127892,5.5447,180.38,180.37,6.16935264]
[1753964128901,8.7847,180.38,180.37,6.16935264]
[1753964129702,5.5447,180.38,180.37,6.16935264]
[1753964130305,8.7847,180.38,180.37,3.12]
[1753964133397,5.5447,180.38,180.37,3.12]
[1753964134104,8.7847,180.38,180.37,3.12]
[1753964139506,5.5447,180.38,180.37,3.12]
[1753964140404,5.5444,180.39,180.37,3.12]
[1753964140704,8.7844,180.39,180.38,3.12]
[1753964143010,3.04935264,180.42,180.38,3.12]
[1753964143210,3.24,180.4,180.38,3.12]
[1753964144308,3.24,180.41,180.37,5.5449]
[1753964144505,3.24,180.43,180.38,3.12]
[1753964144816,3.24,180.46,180.4,3.12]
[1753964145005,8.783,180.44,180.4,3.12]
[1753964145206,3.97158432,180.43,180.4,3.12]
[1753964145406,3.24,180.44,180.4,3.12]
[1753964145712,9.51481597,180.43,180.4,3.12]
[1753964146012,8.6333,180.43,180.4,3.12]
[1753964146609,3.04935264,180.47,180.41,3.27]
[1753964146610,8.6329,180.44,180.41,3.27]
[1753964147800,5.5426,180.45,180.42,3.27]
[1753964148006,3.09,180.48,180.42,3.27]
[1753964148208,3.09,180.47,180.42,3.27]
[1753964148407,5.5424,180.46,180.43,3.27]
[1753964149312,5.5426,180.45,180.43,3.27]
[1753964149810,5.5426,180.45,180.43,6.31935264]
[1753964150011,5.5426,180.45,180.44,3.27]
[1753964151015,3.09,180.52,180.44,3.27]
[1753964151215,3.04935264,180.55,180.46,3.04935264]
[1753964151417,3.09,180.49,180.44,3.04935264]
[1753964151717,3.09,180.49,180.48,3.27]
[1753964152615,8.6313,180.49,180.48,3.27]
[1753964153620,5.5419,180.47,180.46,3.04935264]
[1753964153827,8.6319,180.47,180.46,6.31935264]
[1753964154118,5.5419,180.47,180.46,3.27]
[1753964154322,5.5425,180.45,180.44,3.27]
[1753964154621,8.6325,180.45,180.44,3.27]
[1753964156315,5.5425,180.45,180.44,3.27]
[1753964157416,8.6331,180.43,180.42,3.27]
[1753964159021,5.5431,180.43,180.42,3.27]
[1753964160226,5.5431,180.43,180.42,6.31935264]
[1753964160620,5.5429,180.44,180.43,3.27]
[1753964162129,9.52815712,180.44,180.43,3.27]
[1753964163326,3.98525712,180.44,180.43,3.27]
[1753964164325,9.52805712,180.44,180.43,3.27]
[1753964165323,3.09,180.42,180.41,3.27]
[1753964165527,3.09,180.46,180.41,3.27]
[1753964165834,3.09,180.43,180.41,3.27]
[1753964166024,8.6333,180.43,180.41,3.27]
[1753964166828,5.5433,180.43,180.41,3.27]
[1753964167424,5.5429,180.44,180.42,6.31935264]
[1753964167633,3.09,180.47,180.43,3.27]
[1753964167830,3.98717604,180.46,180.43,3.27]
[1753964168035,3.98717604,180.45,180.43,3.27]
[1753964168233,3.09,180.46,180.43,3.27]
[1753964168534,3.98693212,180.45,180.43,3.27]
[1753964168833,5.5431,180.43,180.42,3.04935264]
[1753964169035,3.09,180.43,180.4,3.04935264]
[1753964169331,3.09,180.43,180.41,3.27]
[1753964169533,8.6331,180.43,180.42,3.27]
[1753964170132,3.09,180.43,180.4,6.31935264]
[1753964170432,3.09,180.47,180.41,3.27]
[1753964170634,5.5434,180.43,180.41,3.27]
[1753964171135,5.5434,180.42,180.41,3.27]
[1753964171331,3.09,180.44,180.41,3.27]
[1753964171934,5.5433,180.43,180.41,3.27]
[1753964173432,5.5434,180.42,180.41,3.27]
[1753964177240,5.5433,180.43,180.41,3.27]
[1753964177938,5.5431,180.43,180.41,5.5437]
[1753964178132,5.5431,180.43,180.42,3.03]
[1753964179641,8.5731,180.43,180.42,3.03]
[1753964180648,3.03,180.42,180.37,3.03]
[1753964180852,3.03,180.42,180.28,9.29707358]
[1753964180853,3.03,180.37,180.28,3.03]
[1753964181144,3.03,180.35,180.29,3.03]
[1753964181343,3.03,180.35,180.23,112.8581]
[1753964181344,3.03,180.35,180.31,3.03]
[1753964181643,3.03,180.35,180.3,3.04935264]
[1753964181644,5.5456,180.35,180.33,3.03]
[1753964182039,8.5756,180.35,180.34,3.03]
[1753964185242,3.03,180.32,180.29,3.03]
[1753964185539,3.03,180.34,180.27,3.03]
[1753964185746,8.577,180.31,180.28,3.03]
[1753964186740,5.5472,180.3,180.28,3.03]
[1753964186939,8.5772,180.3,180.29,3.03]
[1753964187341,8.5772,180.3,180.27,3.03]
[1753964187547,3.03,180.28,180.27,3.03]
[1753964187846,3.03,180.3,180.26,3.03]
[1753964188049,5.5479,180.28,180.26,3.03]
[1753964188236,3.03,180.27,180.26,3.03]
[1753964188941,3.04935264,180.31,180.24,3.03]
[1753964189248,3.03,180.29,180.24,3.04935264]
[1753964189444,8.5776,180.29,180.25,5.5486]
[1753964189643,8.5776,180.29,180.26,3.03]
[1753964189948,3.03,180.29,180.26,8.5783]
[1753964190144,3.03,180.29,180.24,3.04935264]
[1753964190446,8.5776,180.29,180.28,3.03]
[1753964191246,8.5772,180.3,180.29,3.03]
[1753964192351,3.03,180.32,180.26,3.03]
[1753964192950,8.578,180.28,180.27,3.03]
[1753964193151,3.03,180.28,180.27,3.03]
[1753964193350,3.03,180.32,180.27,3.03]
[1753964193653,8.5774,180.3,180.27,3.03]
[1753964193854,3.03,180.3,180.27,3.03]
[1753964194552,5.5475,180.29,180.27,3.03]
[1753964195948,8.5775,180.29,180.28,3.03]
[1753964199356,5.5478,180.28,180.27,3.03]
[1753964200453,8.5778,180.28,180.27,3.03]
[1753964200649,5.5478,180.28,180.27,3.03]
[1753964201051,8.5778,180.28,180.27,3.03]
[1753964203263,8.5784,180.26,180.25,6.07935264]
[1753964203871,5.5484,180.26,180.25,6.07935264]
[1753964204685,8.5784,180.26,180.25,6.07935264]
[1753964205172,2.98,180.32,180.26,3.04]
[1753964205873,5.5479,180.28,180.26,3.04]
[1753964210200,5.5476,180.29,180.25,3.04935264]
[1753964210374,5.5476,180.29,180.27,6.08935264]
[1753964210576,5.5476,180.29,180.28,3.04]
[1753964211171,7.67056344,180.38,180.28,3.04]
[1753964211473,2.98,180.36,180.33,3.04]
[1753964211678,5.5459,180.34,180.33,3.04]
[1753964211979,8.5259,180.34,180.33,3.04]
[1753964213574,5.5464,180.33,180.31,6.08935264]
[1753964213780,3.04935264,180.34,180.28,3.04]
[1753964213976,2.98,180.33,180.28,3.04]
[1753964214470,3.04935264,180.34,180.28,3.04]
[1753964214471,8.5274,180.29,180.28,3.04]
[1753964215875,5.5484,180.26,180.25,3.04]
[1753964216681,8.5284,180.26,180.25,3.04]
[1753964217880,2.98,180.23,180.2,3.04]
[1753964218178,3.04935264,180.26,180.21,3.04]
[1753964218179,2.98,180.22,180.21,3.04]
[1753964218777,8.5299,180.22,180.21,3.04]
[1753964219677,5.5499,180.22,180.21,3.04]
[1753964219980,3.04935264,180.28,180.2,3.04935264]
[1753964220183,3.98660207,180.27,180.22,3.04935264]
[1753964220485,2.98,180.25,180.24,3.04]
[1753964220991,8.5287,180.25,180.24,3.04]
[1753964221282,2.98,180.29,180.23,3.04]
[1753964221483,5.5493,180.23,180.22,3.04935264]
[1753964221688,2.98,180.25,180.18,3.04935264]
[1753964222081,2.98,180.25,180.19,3.04]
[1753964222275,5.5501,180.21,180.17,5.5511]
[1753964222473,2.98,180.21,180.2,3.04]
[1753964222687,2.98,180.22,180.21,3.04]
[1753964223582,3.04935264,180.26,180.21,3.04]
[1753964223888,2.98,180.23,180.22,3.04]
[1753964224381,3.04935264,180.26,180.22,3.04]
[1753964224593,5.5495,180.23,180.22,3.04]
[1753964225476,8.5295,180.23,180.22,3.04]
[1753964228081,5.5495,180.23,180.22,3.04]
[1753964229291,8.5295,180.23,180.22,3.04]
[1753964229689,5.5495,180.23,180.22,3.04]
[1753964230989,8.5295,180.23,180.22,3.04]
[1753964231189,8.53,180.21,180.2,3.04]
[1753964231486,5.55,180.21,180.2,3.04]
[1753964231893,8.53,180.21,180.2,3.04]
[1753964232189,5.55,180.21,180.2,3.04]
[1753964232594,8.53,180.21,180.2,3.04]
[1753964233486,5.5505,180.19,180.18,3.04]
[1753964233694,2.98,180.22,180.16,6.08935264]
[1753964233888,5.5511,180.17,180.16,6.08935264]
[1753964234090,5.5511,180.17,180.16,3.04]
[1753964235597,8.7911,180.17,180.16,3.04]
[1753964235998,5.5511,180.17,180.16,3.04]
[1753964236497,5.5511,180.17,180.16,6.08935264]
[1753964237390,5.5511,180.17,180.16,6.19935264]
[1753964237590,4.6212108,180.26,180.17,3.15]
[1753964237796,3.24,180.24,180.19,3.15]
[1753964237993,7.21428393,180.23,180.21,3.15]
[1753964238195,5.5496,180.22,180.21,3.15]
[1753964240899,5.5494,180.23,180.22,3.15]
[1753964241591,8.7894,180.23,180.22,3.15]
[1753964243703,5.5499,180.21,180.2,6.19935264]
[1753964249295,8.7899,180.21,180.2,6.19935264]
[1753964250106,5.5499,180.21,180.2,6.19935264]
[1753964252707,8.7899,180.21,180.2,3.04935264]
[1753964252907,5.5505,180.19,180.18,6.19935264]
[1753964253305,8.7905,180.19,180.18,6.19935264]
[1753964253811,8.7905,180.19,180.18,3.15]
[1753964254714,5.5505,180.19,180.18,3.15]
[1753964255912,5.5505,180.19,180.17,3.04935264]
[1753964255913,3.24,180.19,180.11,3.15]
[1753964256112,3.24,180.19,180.13,3.04935264]
[1753964256317,3.04935264,180.21,180.15,3.15]
[1753964256318,3.24,180.17,180.15,3.15]
[1753964256510,3.24,180.16,180.15,3.15]
[1753964257215,8.7914,180.16,180.15,3.15]
[1753964258314,5.5521,180.14,180.13,6.19935264]
[1753964258519,3.24,180.18,180.12,3.15]
[1753964258714,5.5523,180.14,180.12,3.15]
[1753964259312,3.24,180.16,180.12,3.15]
[1753964259918,5.5523,180.14,180.12,3.15]
[1753964261015,5.5524,180.13,180.12,3.15]
[1753964264818,5.5521,180.14,180.12,3.15]
[1753964265032,3.24,180.17,180.14,3.15]
[1753964265211,3.24,180.17,180.16,3.26]
[1753964265416,7.21874192,180.17,180.16,3.26]
[1753964265616,3.24,180.17,180.16,3.26]
[1753964265920,8.7911,180.17,180.16,3.26]
[1753964266320,3.24,180.17,180.16,3.26]
[1753964266525,3.24,180.17,180.13,3.04935264]
[1753964266711,3.24,180.17,180.14,3.26]
[1753964268733,3.24,180.17,180.13,3.04935264]
[1753964268928,3.24,180.17,180.15,3.26]
[1753964269420,2.98,180.15,180.02,9.29707358]
[1753964269625,2.98,180.13,180.07,3.26]
[1753964269922,2.98,180.11,180.07,3.26]
[1753964270527,2.98,180.1,180.07,3.26]
[1753964270729,2.98,180.11,180.07,3.26]
[1753964271030,2.98,180.13,180.07,3.04935264]
[1753964271225,2.98,180.17,180.1,3.26]
[1753964271426,2.98,180.15,180.1,3.26]
[1753964271732,6.95393642,180.14,180.1,3.26]
[1753964271926,2.98,180.14,180.1,3.26]
[1753964272130,4.6212108,180.21,180.04,0.96627747]
[1753964272329,2.98,180.18,180.12,3.26]
[1753964272523,3.04935264,180.19,180.12,3.26]
[1753964272524,2.98,180.16,180.12,3.26]
[1753964272929,2.98,180.16,180.13,3.26]
[1753964273729,2.98,180.16,180.08,102.44]
[1753964273932,2.98,180.16,180.13,3.26]
[1753964274426,3.04935264,180.18,180.04,0.96627747]
[1753964274427,3.04935264,180.14,180.05,3.26]
[1753964274632,2.98,180.11,180.06,3.26]
[1753964275030,2.98,180.1,180.06,3.26]
[1753964276027,2.98,180.13,180.09,3.26]
[1753964276222,3.04935264,180.12,180.07,3.26]
[1753964276427,2.98,180.11,180.07,3.26]
[1753964276631,2.98,180.11,180.08,3.26]
[1753964276933,2.98,180.1,180.09,3.26]
[1753964278428,2.98,180.13,180.07,3.26]
[1753964281034,2.98,180.13,180.07,6.30935264]
[1753964281234,2.98,180.13,180.08,3.26]
[1753964281534,2.98,180.17,180.1,3.26]
[1753964281836,2.98,180.15,180.1,3.26]
[1753964282040,2.98,180.13,180.1,3.26]
[1753964282437,2.98,180.15,180.1,3.26]
[1753964282637,2.98,180.13,180.1,3.26]
[1753964283336,2.98,180.15,180.1,3.26]
[1753964283537,7.08719866,180.14,180.1,3.26]
[1753964283732,2.98,180.14,180.1,3.26]
[1753964283936,2.98,180.13,180.1,3.26]
[1753964285440,2.98,180.12,180.11,3.26]
[1753964285836,3.04935264,180.17,180.11,3.26]
[1753964286038,2.98,180.15,180.12,3.26]
[1753964286238,4.10742194,180.14,180.12,3.26]
[1753964286534,2.98,180.14,180.12,3.26]
[1753964286734,2.98,180.14,180.13,3.26]
[1753964287048,4.10762421,180.14,180.13,3.26]
[1753964287333,4.10762421,180.15,180.13,3.26]
[1753964287538,2.98,180.16,180.13,3.26]
[1753964287739,4.10835982,180.15,180.13,3.26]
[1753964288037,2.98,180.18,180.15,3.26]
[1753964288230,7.08927828,180.17,180.16,3.26]
[1753964288430,7.08927828,180.17,180.14,3.26]
[1753964288629,2.98,180.16,180.15,3.26]
[1753964289237,7.08924405,180.16,180.15,3.26]
[1753964290437,7.08924405,180.16,180.12,3.26]
[1753964290636,2.98,180.15,180.12,3.26]
[1753964290838,2.98,180.14,180.13,3.26]
[1753964293649,2.98,180.14,180.1,3.04935264]
[1753964293866,2.98,180.18,180.11,3.26]
[1753964294046,4.1126182,180.17,180.11,3.26]
[1753964294348,2.98,180.14,180.11,3.26]
[1753964295146,4.11398826,180.13,180.11,3.26]
[1753964295347,2.98,180.14,180.11,3.26]
[1753964295544,4.11411906,180.13,180.11,3.26]
[1753964295751,2.98,180.14,180.11,3.26]
[1753964296046,4.11411906,180.13,180.11,3.26]
[1753964296250,3.15,180.16,180.11,3.26]
[1753964296436,3.15,180.14,180.11,3.26]
[1753964296746,3.15,180.12,180.11,3.26]
[1753964297145,7.2651273,180.12,180.11,3.26]
[1753964297645,7.2651273,180.12,180.07,3.04935264]
[1753964297851,3.15,180.1,180.09,3.01]
[1753964298040,3.04935264,180.15,180.07,3.04935264]
[1753964298246,3.15,180.11,180.1,3.01]
[1753964298643,3.15,180.15,180.1,3.01]
[1753964298950,3.15,180.13,180.08,3.01]
[1753964299149,7.26726396,180.12,180.08,3.01]
[1753964299354,3.15,180.12,180.08,3.01]
[1753964301051,4.12018331,180.11,180.08,3.01]
[1753964301244,4.12018331,180.11,180.07,3.04935264]
[1753964301245,3.15,180.12,180.07,3.04935264]
[1753964301452,7.27007506,180.11,180.08,3.01]
[1753964301652,3.15,180.11,180.09,3.01]
[1753964301849,3.15,180.11,180.1,3.01]
[1753964302250,7.26989007,180.11,180.1,3.01]
[1753964303255,12.82289007,180.11,180.1,3.01]
[1753964303948,5.5539,180.08,180.07,3.01]
[1753964304149,3.15,180.07,180.04,3.01]
[1753964304857,5.5548,180.05,180.04,3.01]
[1753964305247,5.5556,180.03,180.02,3.01]
[1753964306553,5.5563,180.01,179.98,3.01]
[1753964306768,3.15,180.04,179.97,3.01]
[1753964306952,3.15,180.02,179.97,3.01]
[1753964307158,4.11420713,180.01,179.94,3.01]
[1753964307355,3.15,180.02,179.95,6.05935264]
[1753964307557,3.15,180.02,179.96,3.01]
[1753964307858,4.11050986,180.01,179.98,3.01]
[1753964308055,4.11050986,180.01,179.91,3.04935264]
[1753964308056,3.15,180.04,179.99,3.04935264]
[1753964308255,4.11111403,180.03,180.0,3.01]
[1753964308462,4.11111403,180.02,180.0,3.01]
[1753964308757,3.15,180.03,180.0,3.01]
[1753964308954,9.66434867,180.02,180.0,3.01]
[1753964309265,3.04935264,180.04,179.99,3.01]
[1753964309458,4.10614396,180.03,180.0,3.01]
[1753964309757,4.10595909,180.02,180.0,3.01]
[1753964309957,3.15,180.01,180.0,3.01]
[1753964310259,8.7061,180.01,180.0,3.01]
[1753964310558,3.15,180.03,179.97,3.01]
[1753964310958,5.5566,180.0,179.97,3.01]
[1753964311964,5.5567,179.99,179.97,3.01]
[1753964312460,5.5565,180.0,179.97,3.01]
[1753964312755,3.15,180.01,179.97,3.01]
[1753964313354,5.5567,179.99,179.97,3.01]
[1753964314358,5.557,179.98,179.97,3.01]
[1753964315055,3.04935264,180.06,179.97,6.05935264]
[1753964315355,11.1078,180.09,180.01,3.01]
[1753964315356,3.15,180.05,180.01,3.01]
[1753964315560,5.5556,180.03,180.01,3.01]
[1753964316366,3.15,180.05,180.01,3.01]
[1753964316367,5.5557,180.02,180.01,3.01]
[1753964317865,5.5564,180.0,179.99,6.05935264]
[1753964318458,3.15,180.05,180.0,3.01]
[1753964319156,3.15,180.03,179.98,3.01]
[1753964319365,5.5567,179.99,179.97,3.01]
[1753964319863,5.557,179.98,179.97,3.01]
[1753964323866,5.5568,179.99,179.97,3.01]
[1753964324164,8.7068,179.99,179.98,3.01]
[1753964324768,5.5571,179.98,179.95,5.5577]
[1753964325071,3.15,179.98,179.97,3.01]
[1753964325362,3.13,180.02,179.98,3.25]
[1753964325767,3.13,180.02,179.96,3.25]
[1753964326664,8.6872,179.98,179.97,3.25]
[1753964326869,5.5572,179.98,179.97,3.25]
[1753964327067,3.13,180.0,179.97,3.25]
[1753964327261,5.5569,179.99,179.97,3.25]
[1753964327466,3.13,180.0,179.97,3.25]
[1753964327666,3.04935264,180.03,179.97,3.25]
[1753964327873,3.13,180.02,179.98,3.25]
[1753964328567,3.13,180.02,179.94,3.04935264]
[1753964328873,3.13,180.0,179.94,3.25]
[1753964329273,3.13,179.97,179.94,3.25]
[1753964329971,3.13,180.0,179.94,3.25]
[1753964330463,5.5573,179.97,179.94,3.25]
[1753964330969,5.5571,179.98,179.94,3.25]
[1753964331371,5.5571,179.98,179.96,3.25]
[1753964331565,3.04935264,180.05,179.96,3.25]
[1753964331765,3.13,180.05,179.99,3.04935264]
[1753964331974,3.13,180.05,179.91,3.04935264]
[1753964331975,3.13,180.07,180.03,3.04935264]
[1753964332170,3.13,180.08,180.04,3.25]
[1753964332362,14.15495264,180.12,180.04,3.25]
[1753964332567,3.13,180.08,180.04,3.25]
[1753964332869,3.13,180.11,180.04,3.25]
[1753964334073,5.5548,180.06,180.04,3.25]
[1753964334280,5.5548,180.06,180.05,3.25]
[1753964334575,8.6848,180.06,180.05,3.25]
[1753964336573,5.5548,180.06,180.05,3.25]
[1753964339773,8.6848,180.06,180.05,3.25]
[1753964340681,5.5548,180.06,180.05,3.25]
[1753964343774,3.13,180.12,180.06,3.25]
[1753964343974,3.13,180.12,180.08,3.25]
[1753964344283,5.5535,180.1,180.08,3.25]
[1753964345175,3.13,180.14,180.08,3.25]
[1753964345477,3.9492943,180.13,180.08,3.25]
[1753964345679,3.13,180.11,180.08,3.25]
[1753964345880,3.04935264,180.11,180.05,3.25]
[1753964346179,3.13,180.09,180.06,3.25]
[1753964346376,5.5542,180.07,180.06,3.25]
[1753964346878,8.6842,180.07,180.06,3.25]
[1753964347376,5.5539,180.08,180.06,3.25]
[1753964347773,3.13,180.1,180.06,3.25]
[1753964347976,3.13,180.13,180.08,3.25]
[1753964348182,3.95222316,180.12,180.09,3.04935264]
[1753964348478,3.13,180.16,180.11,3.04935264]
[1753964348676,3.95382115,180.15,180.12,3.25]
[1753964348870,3.95382115,180.14,180.11,3.04935264]
[1753964349080,8.682,180.14,180.13,3.25]
[1753964349374,12.63582524,180.14,180.13,3.25]
[1753964349577,8.682,180.14,180.13,3.25]
[1753964351171,5.552,180.14,180.13,3.25]
[1753964354285,3.13,180.21,180.14,3.25]
[1753964354676,5.5517,180.15,180.14,3.25]
[1753964358389,5.5512,180.17,180.14,3.25]
[1753964358782,5.5509,180.18,180.15,3.04935264]
[1753964358987,5.5509,180.18,180.16,3.25]
[1753964359891,5.5511,180.17,180.16,3.25]
[1753964360897,2.97,180.22,180.12,5.5525]
[1753964361099,2.97,180.2,180.14,3.25]
[1753964361397,3.9453866,180.19,180.14,3.25]
[1753964361606,5.552,180.15,180.14,3.25]
[1753964364804,5.552,180.14,180.13,3.04935264]
[1753964365005,5.552,180.14,180.13,6.29935264]
[1753964365705,8.5218,180.15,180.13,6.29935264]
[1753964365897,8.5218,180.15,180.14,3.25]
[1753964366703,5.5518,180.15,180.14,3.25]
[1753964367303,5.5515,180.16,180.13,8.60165264]
[1753964367499,5.5515,180.16,180.14,3.25]
[1753964369303,5.5515,180.16,180.15,3.25]
[1753964369701,8.5215,180.16,180.15,3.25]
[1753964370402,2.97,180.14,180.11,3.04935264]
[1753964370707,2.97,180.12,180.11,3.25]
[1753964371702,8.5225,180.13,180.12,3.25]
[1753964372008,5.5525,180.13,180.12,3.25]
[1753964373200,5.5521,180.14,180.13,3.25]
[1753964374006,8.5221,180.14,180.13,3.25]
[1753964375008,5.5528,180.12,180.11,3.25]
[1753964375506,5.5525,180.13,180.1,8.60255264]
[1753964375702,5.5525,180.13,180.12,3.25]
[1753964376020,3.04935264,180.15,180.08,5.5537]
[1753964376214,2.97,180.1,180.09,3.25]
[1753964376505,2.97,180.12,180.05,3.25]
[1753964376705,2.97,180.1,180.02,3.04935264]
[1753964376909,2.97,180.08,180.05,3.25]
[1753964377208,2.97,180.1,180.05,3.25]
[1753964377607,8.5238,180.09,180.06,5.5545]
[1753964377798,8.5238,180.09,180.08,3.25]
[1753964379006,2.97,180.08,180.07,3.25]
[1753964380707,8.5239,180.08,180.07,3.25]
[1753964381108,8.5235,180.1,180.07,3.25]
[1753964381308,2.97,180.1,180.06,3.04935264]
[1753964381505,2.97,180.1,180.07,3.25]
[1753964381910,8.5235,180.1,180.07,8.804]
[1753964382110,5.5535,180.1,180.06,3.04935264]
[1753964382308,2.97,180.14,180.09,3.25]
[1753964382509,8.5229,180.12,180.09,8.8035]
[1753964382906,5.5529,180.12,180.09,5.5535]
[1753964383205,5.5529,180.12,180.11,3.25]
[1753964385417,8.5225,180.13,180.11,3.25]
[1753964385616,5.5525,180.13,180.11,3.25]
[1753964386610,5.5527,180.12,180.11,3.25]
[1753964389618,8.5824,180.13,180.11,3.25]
[1753964389815,106.48422152,180.18,180.13,3.27]
[1753964390013,6.13896202,180.2,180.15,3.27]
[1753964390014,6.98514072,180.17,180.15,3.27]
[1753964390215,6.98514072,180.17,180.14,3.04935264]
[1753964390216,9.50674072,180.16,180.14,3.04935264]
[1753964390408,5.5516,180.16,180.14,3.04935264]
[1753964390721,5.5516,180.16,180.15,3.27]
[1753964391018,9.50639012,180.16,180.15,3.27]
[1753964392018,5.5517,180.15,180.14,3.04935264]
[1753964392214,6.98505643,180.15,180.12,6.31935264]
[1753964392414,3.03,180.14,180.13,3.27]
[1753964392615,3.03,180.14,180.1,3.04935264]
[1753964392914,3.95464419,180.13,180.11,3.27]
[1753964393116,3.03,180.13,180.11,3.27]
[1753964393316,3.03,180.13,180.09,3.04935264]
[1753964393517,3.03,180.13,180.12,3.27]
[1753964394421,12.53784032,180.13,180.12,3.27]
[1753964394721,8.5825,180.13,180.12,3.27]
[1753964395023,8.5828,180.12,180.1,3.27]
[1753964395215,5.5528,180.12,180.1,3.27]
[1753964395420,3.03,180.11,180.1,3.27]
[1753964396222,5.5525,180.13,180.09,3.04935264]
[1753964396417,3.03,180.12,180.11,3.27]
[1753964396624,6.98457289,180.12,180.11,3.27]
[1753964397118,12.53727289,180.12,180.11,3.27]
[1753964397318,3.95457289,180.12,180.07,8.60345264]
[1753964397520,3.03,180.11,180.08,3.27]
[1753964397723,5.5535,180.1,180.08,3.27]
[1753964399921,3.03,180.11,180.08,3.27]
[1753964399922,5.5531,180.11,180.08,3.27]
[1753964400123,5.5531,180.11,180.09,3.27]
[1753964400522,5.5527,180.12,180.09,6.31935264]
[1753964400721,7.65357416,180.17,180.09,3.04935264]
[1753964400722,3.03,180.15,180.09,3.04935264]
[1753964400923,3.04935264,180.13,180.05,3.04935264]
[1753964401120,8.5845,180.06,180.05,3.27]
[1753964402230,3.03,180.06,179.98,3.27]